Workbook

Sheet Wohngeldberechnung
A1: W O H N G E L D R E C H N E R 2 0 2 2
A2: (nicht rechtsverbindlich)
A4: Name:
A6: Mietstufe d. Wohnortes: | F6: Mietstufen-Übersicht BMI
A8: Mietstufe: | C8: =IFERROR(VLOOKUP(B6,Mietstufen!A3:B56,2,FALSE),"") -> 
A10: Anzahl der Haush. Mitglieder:
A12: Berück. Miete/Belastung: | C12: =IFERROR(IF(C28=0,"",C28),"") -> 
A14: monatl. Gesamteinkommen: | C14: =IF(C54=0,"",C54) -> 
A16: Wohngeld: | C16: =IFERROR(Hilfsrechnungen!H20,"") -> 
A19: B e r e c h n u n g z u b e r ü c k s i c h t i g e n d e M i e t e / B e l a s t u n g
A20: !!! Heizkosten bleiben außer Betracht!!!
A22: tatsächliche Miete / Belastung | E22: Heizkostenentl. | F22: =Hilfsrechnungen!I17 -> 
A25: Höchstmiete / Belastung | C25: =IFERROR(INDEX(Hilfsrechnungen!A29:M36,MATCH(C8,Hilfsrechnungen!A29:A36,0),MATCH(C10,Hilfsrechnungen!A29:M29,0)),"") -> 
A28: Zu berücksichtigende Miete | C28: =IF(C22>C25,C25+F22,IF(C22=0,"",C22+F22)) -> 
A32: M o n a t l i c h e s G e s a m t e i n k o m m e n
A33: !!! Kindergeld bleibt beim Wohngeld außer Betracht !!!
A35: Höhe des Bruttoeinkommens
A36: Wessen Einkommen?
A37: Einkommesart
A39: Einkommensbereinigung
A40: abzgl. Werbungskosten(-pauschale)
A41: Zwischenergebnis | C41: =IF(C35-C40=0,"",C35-C40) ->  | D41: =IF(D35-D40=0,"",D35-D40) -> 
A42: pauschaler Abzug in %
A43: pauschaler Abzug als Betrag | C43: =IFERROR(C41*C42,"") ->  | D43: =IFERROR(D41*D42,"") -> 
A44: Zwischenergebnis | C44: =IFERROR(C41-C43,"") ->  | D44: =IFERROR(D41-D43,"") -> 
A46: Summe der bereinigten Einkommen | C46: =IF(SUM(C44:G44)=0,"",SUM(C44:G44)) -> 
A48: Weitere Freibeträge
A49: Schwerbehinderung 100% oder <100% und pflegebed.?
A50: "Kind" bis 25 Jahre alt und eigenes Einkommen
A51: Alleinerziehenden-Freibetrag (mind. 1 Kind minderj.)
A52: weitere Absetzmöglichkeiten (u.a. Unterhaltsz.)
A54: Monatl. Gesamteinkommen | C54: =IFERROR(C46-SUM(C49:C52),"") -> 
A57: © Diakonische Bezirksstelle Neuenstadt, Version 2022
A58: Weitere Infos zum Wohngeld
A59: www.bmi.bund.de/Wohngeld

Sheet Mietstufen
A1: Gemeinde/-Teilort | B1: Mietstufe
A3: Mietstufe 1 | B3: 1
A4: Mietstufe 2 | B4: 2
A5: Mietstufe 3 | B5: 3
A6: Mietstufe 4 | B6: 4
A7: Mietstufe 5 | B7: 5
A8: Mietstufe 6 | B8: 6
A9: Mietstufe 7 | B9: 7

Sheet Hilfsrechnungen
A1: Berechnungsformeln für a,b,c sowie für Mmin und Ymin
B2: 1 | C2: 2 | D2: 3 | E2: 4 | F2: 5 | G2: 6 | H2: 7 | I2: 8 | J2: 9 | K2: 10 | L2: 11 | M2: 12
A3: a | B3: 0.04 | C3: 0.03 | D3: 0.02 | E3: 0.01 | F3: 0 | G3: -0.01 | H3: -0.02 | I3: -0.03 | J3: -0.04 | K3: -0.06 | L3: -0.1 | M3: -0.14
A4: b | B4: =5.64/10000 -> 0.000564 | C4: =3.94/10000 -> 0.000394 | D4: =3.4/10000 -> 0.00034 | E4: =3.04/10000 -> 0.000304 | F4: 0.000268 | G4: 0.000251 | H4: 0.000232 | I4: 0.000206 | J4: 0.000179 | K4: 0.000143 | L4: 0.000107 | M4: 9.8e-05
A5: c | B5: 0.0001157 | C5: 8.63e-05 | D5: 6.95e-05 | E5: 3.61e-05 | F5: 3.52e-05 | G5: 3.02e-05 | H5: =3.1/100000 -> 3.1e-05 | I5: 3.1e-05 | J5: =3.26/100000 -> 3.26e-05 | K5: =3.77/100000 -> 3.77e-05 | L5: =4.44/100000 -> 4.44e-05 | M5: =5.03/100000 -> 5.03e-05
A6: Mmin | B6: 52 | C6: 64 | D6: 76 | E6: 88 | F6: 99 | G6: 99 | H6: 111 | I6: 123 | J6: 135 | K6: 146 | L6: 180 | M6: 286
A7: Ymin | B7: 275 | C7: 357 | D7: 414 | E7: 447 | F7: 532 | G7: 618 | H7: 702 | I7: 787 | J7: 872 | K7: 957 | L7: 1248 | M7: 1443
A8: Höchstbeträge HK | B8: 14.40 € | C8: 18.60 € | D8: 22.20 € | E8: 25.80 € | F8: 29.40 € | G8: =F8+3.6 -> 33.00 € | H8: =G8+3.6 -> 36.60 € | I8: 40.20 € | J8: 43.80 € | K8: 47.40 € | L8: 51.00 € | M8: 54.60 €
H9: HH-Mitglieder | I9: =Wohngeldberechnung!C10 -> 0
H10: Miete | I10: M | J10: =IF(Wohngeldberechnung!C28<HLOOKUP(I9,B2:M6,5),HLOOKUP(I9,B2:M6,5),Wohngeldberechnung!C28) -> 
H12: Gesamtek | I12: Y | J12: =IF(Wohngeldberechnung!C54<HLOOKUP(I9,B2:M7,6),HLOOKUP(I9,B2:M7,6),Wohngeldberechnung!C54) -> 
H14: a | I14: =HLOOKUP(I9,B2:M3,2) -> 
H15: b | I15: =HLOOKUP(I9,B2:M4,3) -> 
H16: c | I16: =HLOOKUP(I9,B2:M5,4) -> 
H17: d | I17: =HLOOKUP(I9,B2:M8,7) -> 
G19: WoG unrund | H19: =1.15*(J10-(I14+I15*J10+I16*J12)*J12) -> 
G20: Wohngeld rund | H20: =ROUND(H19,0) -> 
G23: z1 | H23: =I14+I15*J10+I16*J12 -> 
G24: z2 | H24: =H23*J12 -> 
G25: z3 | H25: =J10-H24 -> 
G26: z4 | H26: =1.08*H25 -> 
A28: Höchstbeträge für Miete/Belastung
B29: 1 | C29: 2 | D29: 3 | E29: 4 | F29: 5 | G29: 6 | H29: 7 | I29: 8 | J29: 9 | K29: 10 | L29: 11 | M29: 12
A30: 1 | B30: 347 € | C30: 420 € | D30: 501 € | E30: 584 € | F30: 667 € | G30: =F30+79 -> 746 € | H30: 825 € | I30: 904 € | J30: 983 € | K30: 1,062 € | L30: 1,141 € | M30: 1,220 €
A31: 2 | B31: 392 € | C31: 474 € | D31: 564 € | E31: 659 € | F31: 752 € | G31: =F31+90 -> 842 € | H31: 932 € | I31: 1,022 € | J31: 1,112 € | K31: 1,202 € | L31: 1,292 € | M31: 1,382 €
A32: 3 | B32: 438 € | C32: 530 € | D32: 631 € | E32: 736 € | F32: 841 € | G32: =F32+102 -> 943 € | H32: 1,045 € | I32: 1,147 € | J32: 1,249 € | K32: 1,351 € | L32: 1,453 € | M32: 1,555 €
A33: 4 | B33: 491 € | C33: 595 € | D33: 708 € | E33: 825 € | F33: 944 € | G33: =F33+114 -> 1,058 € | H33: 1,172 € | I33: 1,286 € | J33: 1,400 € | K33: 1,514 € | L33: 1,628 € | M33: 1,742 €
A34: 5 | B34: 540 € | C34: 654 € | D34: 778 € | E34: 909 € | F34: 1,038 € | G34: =F34+124 -> 1,162 € | H34: 1,286 € | I34: 1,410 € | J34: 1,534 € | K34: 1,658 € | L34: 1,782 € | M34: 1,906 €
A35: 6 | B35: 591 € | C35: 716 € | D35: 853 € | E35: 995 € | F35: 1,137 € | G35: =F35+143 -> 1,280 € | H35: 1,423 € | I35: 1,566 € | J35: 1,709 € | K35: 1,852 € | L35: 1,995 € | M35: 2,138 €
A36: 7 | B36: 651 € | C36: 788 € | D36: 937 € | E36: 1,095 € | F36: 1,251 € | G36: =F36+157 -> 1,408 € | H36: 1,565 € | I36: 1,722 € | J36: 1,879 € | K36: 2,036 € | L36: 2,193 € | M36: 2,350 €
A39: 1 | L39: 100
A40: 2 | D40: 150 | F40: 10% | H40: 50 | L40: 200
A41: 3 | D41: 300 | F41: 20% | H41: 100 | J41: 8.5 | L41: 300
A42: 4 | D42: 450 | F42: 30% | H42: 150 | J42: 83.33 | L42: 400
A43: 5 | D43: 600 | H43: 200
A44: 6
A45: 7
A46: 8
A47: 9 | E47: 0
A48: 10 | E48: =1320/12 -> 110
A49: 11
A50: 12
